[Event "EYCC G10-ch 2024"]
[Site "Prague"]
[Date "2024.08.29"]
[Round "7.13"]
[White "Kravchuk, Daria"]
[Black "Hatuk, Neris"]
[Result "0-1"]
[ECO "B13"]
[WhiteElo "1597"]
[BlackElo "1671"]
[Annotator "NA RC"]
[PlyCount "50"]
[EventDate "2024.08.19"]
[EventType "swiss"]
[EventCountry "CZE"]
[SourceTitle "playchess.com"]
[Source "ChessBase"]
[SourceQuality "1"]
[TimeControl "5400+30"]

1. e4 {[%emt 0:00:44]} c6 {[%emt 0:00:04]} 2. d4 {[%emt 0:00:05]} d5 {[%emt 0:00:04]} 3. exd5 {[%emt 0:00:07]} cxd5 {[%emt 0:00:07]} 4. c4 {[%emt 0:00:03]} Nc6 {[%emt 0:01:16]} 5. Nc3 {[%emt 0:00:07]} Nf6 {[%emt 0:01:23]} 6. Bg5 {[%emt 0:01:27]} Be6 {[%emt 0:08:58]} 7. Nge2 {[%emt 0:02:18]} h6 {[%emt 0:03:12]} 8. Bxf6 {[%emt 0:01:05]} exf6 {[%emt 0:00:08]} 9. Nf4 {[%emt 0:00:42]} Bb4 {[%emt 0:02:21]} 10. Nxe6 fxe6 {[%emt 0:00:07]} 11. Qh5+ {[%emt 0:04:32]} Kf8 {[%emt 0:01:06]} 12. Qg4 {[%emt 0:06:59]} Qb6 {[%emt 0:09:06]} 13. Rd1 {[%emt 0:04:46]} Qa5 {[%emt 0:05:00]} 14. Be2 {[%emt 0:04:38]} Bxc3+ {[%emt 0:10:06]} 15. bxc3 {[%emt 0:01:09]} Qxc3+ {[%emt 0:00:19]} 16. Kf1 {[%emt 0:00:11]} Re8 {[%emt 0:05:37]} 17. cxd5 {[%emt 0:09:10]} exd5 {[%emt 0:00:10]} 18. Qf4 {[%emt 0:01:13]} Re6 {[%emt 0:09:29]} 19. g3 {[%emt 0:09:53]} Qc2 {[%emt 0:04:12]} 20. Bf3 {[%emt 0:08:42]} g5 {[%emt 0:05:43]} 21. Qc7 {[%emt 0:08:47]} Rh7 {[%emt 0:25:56]} 22. Qc8+ {[%emt 0:01:35]} Re8 {[%emt 0:00:05]} 23. Qh3 {[%emt 0:00:38]} h5 {[%emt 0:02:19]} 24. Bxh5 {[%emt 0:06:20]} Qxd1+ {[%emt 0:00:11]} 25. Bxd1 {[%emt 0:00:11]} Rxh3 {[%emt 0:00:05]} 0-1

[Event "EYCC G10-ch 2024"]
[Site "Prague"]
[Date "2024.08.30"]
[Round "8.1"]
[White "Chen, Yuefan"]
[Black "Rzadkowska, Lila"]
[Result "1-0"]
[ECO "A46"]
[WhiteElo "1682"]
[BlackElo "1794"]
[Annotator "NA RC"]
[PlyCount "65"]
[EventDate "2024.08.19"]
[EventType "swiss"]
[EventCountry "CZE"]
[SourceTitle "playchess.com"]
[Source "ChessBase"]
[SourceQuality "1"]
[TimeControl "5400+30"]

1. d4 {[%emt 0:00:02]} Nf6 {[%emt 0:00:05]} 2. Nf3 {[%emt 0:00:07]} d5 {[%emt 0:00:07]} 3. c4 {[%emt 0:00:18]} e6 {[%emt 0:00:08]} 4. e3 {[%emt 0:00:21]} c5 {[%emt 0:00:39]} 5. Nc3 {[%emt 0:00:28]} Nc6 {[%emt 0:00:19]} 6. Be2 {[%emt 0:04:54]} dxc4 {[%emt 0:03:34]} 7. Bxc4 {[%emt 0:00:15]} Qc7 {[%emt 0:02:23]} 8. dxc5 {[%emt 0:04:26]} Bxc5 {[%emt 0:00:23]} 9. O-O {[%emt 0:01:56]} a6 {[%emt 0:02:39]} 10. a3 {[%emt 0:05:01]} O-O {[%emt 0:02:46]} 11. Qc2 {[%emt 0:03:25]} Ba7 {[%emt 0:04:16]} 12. Bd3 {[%emt 0:04:18]} Ne5 {[%emt 0:05:50]} 13. Nxe5 {[%emt 0:03:47]} Qxe5 {[%emt 0:00:08]} 14. Ne4 {[%emt 0:05:10]} Ng4 {[%emt 0:03:40]} 15. Ng3 {[%emt 0:01:29]} h6 {[%emt 0:01:58]} 16. Bd2 {[%emt 0:02:29]} Qg5 {[%emt 0:01:34]} 17. h3 {[%emt 0:18:10]} Nxe3 {[%emt 0:02:34]} 18. Bxe3 {[%emt 0:01:46]} Bxe3 {[%emt 0:00:18]} 19. Ne4 {[%emt 0:02:23]} Qf4 {[%emt 0:01:11]} 20. fxe3 {[%emt 0:00:53]} Qxe3+ {[%emt 0:00:07]} 21. Nf2 {[%emt 0:00:36]} Bd7 {[%emt 0:01:35]} 22. Qe2 {[%emt 0:02:11]} Qg5 {[%emt 0:01:40]} 23. Qg4 {[%emt 0:01:58]} Qf6 {[%emt 0:04:28]} 24. Qe4 {[%emt 0:01:40]} g6 {[%emt 0:01:01]} 25. Ng4 {[%emt 0:02:00]} Qe7 {[%emt 0:00:22]} 26. Nf6+ {[%emt 0:01:32]} Kg7 {[%emt 0:00:32]} 27. Qe5 {[%emt 0:00:21]} Rg8 {[%emt 0:00:45]} 28. Nxd7+ {[%emt 0:01:08]} Kh7 {[%emt 0:00:11]} 29. Nf6+ {[%emt 0:00:06]} Kg7 {[%emt 0:00:04]} 30. Nd5+ {[%emt 0:00:26]} f6 {[%emt 0:00:38]} 31. Nxe7 {[%emt 0:00:08]} fxe5 {[%emt 0:00:06]} 32. Nxg8 {[%emt 0:00:04]} Rxg8 {[%emt 0:00:15]} 33. Rae1 {[%emt 0:00:02]} 1-0

[Event "EYCC G10-ch 2024"]
[Site "Prague"]
[Date "2024.08.30"]
[Round "8.2"]
[White "Anistoroaei, Maria"]
[Black "Russieva, Svitlana"]
[Result "0-1"]
[ECO "D47"]
[WhiteElo "1627"]
[BlackElo "1597"]
[Annotator "NA RC"]
[PlyCount "180"]
[EventDate "2024.08.19"]
[EventType "swiss"]
[EventCountry "CZE"]
[SourceTitle "playchess.com"]
[Source "ChessBase"]
[SourceQuality "1"]
[TimeControl "5400+30"]

1. d4 {[%emt 0:00:06]} d5 {[%emt 0:00:07]} 2. c4 {[%emt 0:00:08]} e6 {[%emt 0:00:10]} 3. Nc3 {[%emt 0:00:16]} c6 {[%emt 0:00:39]} 4. e3 {[%emt 0:00:23]} Nf6 {[%emt 0:00:46]} 5. Nf3 {[%emt 0:00:16]} Nbd7 {[%emt 0:01:04]} 6. Bd3 {[%emt 0:00:32]} dxc4 {[%emt 0:01:52]} 7. Bxc4 {[%emt 0:00:11]} b5 {[%emt 0:00:32]} 8. Bd3 {[%emt 0:01:10]} Bb7 {[%emt 0:01:19]} 9. O-O {[%emt 0:00:47]} a6 {[%emt 0:02:51]} 10. e4 {[%emt 0:07:01]} c5 {[%emt 0:06:13]} 11. Bg5 {[%emt 0:06:06]} Be7 {[%emt 0:04:06]} 12. e5 {[%emt 0:07:04]} Nd5 {[%emt 0:01:48]} 13. Ne4 {[%emt 0:04:23]} O-O {[%emt 0:01:48]} 14. Nd6 {[%emt 0:12:30]} Bc6 {[%emt 0:03:30]} 15. Bxe7 {[%emt 0:01:50]} Qxe7 {[%emt 0:02:14]} 16. dxc5 {[%emt 0:02:03]} Nf4 {[%emt 0:04:36]} 17. Rc1 {[%emt 0:04:13]} Bxf3 {[%emt 0:01:09]} 18. Qxf3 {[%emt 0:03:01]} Nxe5 {[%emt 0:02:35]} 19. Bxh7+ {[%emt 0:00:36]} Kxh7 {[%emt 0:07:13]} 20. Qxf4 {[%emt 0:00:03]} Ng6 {[%emt 0:00:19]} 21. Qf3 {[%emt 0:02:06]} Ra7 {[%emt 0:07:42]} 22. Rfe1 {[%emt 0:04:34]} Rc7 {[%emt 0:05:16]} 23. Ne4 {[%emt 0:04:55]} Kg8 {[%emt 0:03:26]} 24. Qa3 {[%emt 0:12:10]} Ne5 {[%emt 0:03:21]} 25. Qg3 {[%emt 0:02:31]} Ng6 {[%emt 0:02:20]} 26. Rcd1 {[%emt 0:03:27]} Rd8 {[%emt 0:02:14]} 27. Rd6 {[%emt 0:00:56]} Rcd7 {[%emt 0:02:33]} 28. Red1 {[%emt 0:05:02]} e5 {[%emt 0:03:11]} 29. h3 {[%emt 0:02:02]} Nf4 {[%emt 0:01:50]} 30. Qe3 {[%emt 0:01:23]} Ne6 {[%emt 0:01:43]} 31. Rxd7 {[%emt 0:06:31]} Rxd7 {[%emt 0:00:23]} 32. Rd6 {[%emt 0:01:21]} f5 {[%emt 0:01:44]} 33. Qb3 {[%emt 0:00:54]} Rxd6 {[%emt 0:05:01]} 34. cxd6 {[%emt 0:00:40]} Qf7 {[%emt 0:00:06]} 35. Ng3 {[%emt 0:02:51]} Kh7 {[%emt 0:00:40]} 36. Qd5 {[%emt 0:00:37]} Qd7 {[%emt 0:01:23]} 37. Qxe5 {[%emt 0:00:31]} f4 {[%emt 0:01:27]} 38. Ne4 {[%emt 0:01:25]} Kh8 {[%emt 0:00:31]} 39. Qh5+ {[%emt 0:01:15]} Kg8 {[%emt 0:00:08]} 40. Qg4 {[%emt 0:00:13]} Kf7 {[%emt 0:01:54]} 41. Ng5+ {[%emt 0:01:26]} Kf6 {[%emt 0:00:10]} 42. Nxe6 {[%emt 0:00:26]} Qxe6 {[%emt 0:00:09]} 43. d7 {[%emt 0:00:32]} Qe1+ {[%emt 0:00:29]} 44. Kh2 {[%emt 0:00:15]} Qd2 {[%emt 0:00:17]} 45. d8=Q+ {[%emt 0:00:14]} Qxd8 {[%emt 0:00:12]} 46. Qxf4+ {[%emt 0:00:27]} Ke6 {[%emt 0:00:32]} 47. Qe4+ {[%emt 0:00:32]} Kf7 {[%emt 0:00:07]} 48. Qb7+ {[%emt 0:00:20]} Kg8 {[%emt 0:00:13]} 49. Qxa6 {[%emt 0:00:18]} Qc7+ {[%emt 0:00:15]} 50. g3 {[%emt 0:01:04]} Qc2 {[%emt 0:00:16]} 51. Qe6+ {[%emt 0:00:55]} Kh7 {[%emt 0:00:19]} 52. Kg2 {[%emt 0:00:30]} Qxb2 {[%emt 0:00:12]} 53. Qb3 {[%emt 0:00:22]} Qe2 {[%emt 0:00:28]} 54. Qf3 {[%emt 0:00:45]} Qxa2 {[%emt 0:00:25]} 55. Qh5+ {[%emt 0:00:15]} Kg8 {[%emt 0:00:11]} 56. Qxb5 {[%emt 0:00:10]} Qd2 {[%emt 0:00:13]} 57. Qe8+ {[%emt 0:00:41]} Kh7 {[%emt 0:00:13]} 58. Qe4+ {[%emt 0:00:33]} Kg8 {[%emt 0:00:06]} 59. Qf3 {[%emt 0:00:41]} Qa2 {[%emt 0:00:14]} 60. h4 {[%emt 0:00:18]} Qa5 {[%emt 0:00:54]} 61. g4 {[%emt 0:00:38]} Qd8 {[%emt 0:00:20]} 62. Kh3 {[%emt 0:00:38]} Qe7 {[%emt 0:00:59]} 63. Qa8+ {[%emt 0:00:41]} Kh7 {[%emt 0:00:19]} 64. f3 {[%emt 0:00:14]} Qc5 {[%emt 0:00:36]} 65. Qe4+ {[%emt 0:00:34]} g6 {[%emt 0:02:18]} 66. h5 {[%emt 0:00:19]} Qg1 {[%emt 0:00:18]} 67. Qxg6+ {[%emt 0:00:37]} Kh8 {[%emt 0:00:13]} 68. h6 {[%emt 0:00:54]} Qf1+ {[%emt 0:00:35]} 69. Kh4 {[%emt 0:00:25]} Qf2+ {[%emt 0:00:33]} 70. Kg5 {[%emt 0:00:12]} Qd2+ {[%emt 0:02:18]} 71. f4 {[%emt 0:00:33]} Qd8+ {[%emt 0:00:36]} 72. Qf6+ {[%emt 0:00:11]} Kh7 {[%emt 0:00:29]} 73. f5 {[%emt 0:00:23]} Qd2+ {[%emt 0:01:27]} 74. Kh5 {[%emt 0:00:24]} Qh2+ {[%emt 0:00:19]} 75. Qh4 {[%emt 0:00:11]} Qd6 {[%emt 0:00:20]} 76. Kg5 {[%emt 0:02:15]} Qd2+ {[%emt 0:00:38]} 77. Kf6 {[%emt 0:00:21]} Qd8+ {[%emt 0:00:14]} 78. Ke6 {[%emt 0:00:24]} Qxh4 {[%emt 0:00:16]} 79. f6 {[%emt 0:00:16]} Qxg4+ {[%emt 0:00:25]} 80. Ke7 {[%emt 0:00:15]} Kxh6 {[%emt 0:00:20]} 81. f7 {[%emt 0:00:15]} Qb4+ {[%emt 0:00:15]} 82. Ke8 {[%emt 0:00:12]} Kg7 {[%emt 0:00:16]} 83. Kd7 {[%emt 0:00:06]} Qb6 {[%emt 0:00:23]} 84. Ke8 {[%emt 0:00:25]} Qe6+ {[%emt 0:00:19]} 85. Kd8 {[%emt 0:00:10]} Qxf7 {[%emt 0:00:13]} 86. Kc8 {[%emt 0:00:05]} Kf6 {[%emt 0:00:10]} 87. Kb8 {[%emt 0:00:07]} Ke6 {[%emt 0:00:06]} 88. Ka8 {[%emt 0:00:07]} Kd6 {[%emt 0:00:09]} 89. Kb8 {[%emt 0:00:07]} Kc6 {[%emt 0:00:20]} 90. Ka8 {[%emt 0:00:07]} Qb7# {[%emt 0:00:03]} 0-1

[Event "EYCC G10-ch 2024"]
[Site "Prague"]
[Date "2024.08.30"]
[Round "8.3"]
[White "Bakhshi, Rana"]
[Black "Jaksa, Ema"]
[Result "0-1"]
[ECO "D27"]
[WhiteElo "1732"]
[BlackElo "1551"]
[Annotator "NA RC"]
[PlyCount "78"]
[EventDate "2024.08.19"]
[EventType "swiss"]
[EventCountry "CZE"]
[SourceTitle "playchess.com"]
[Source "ChessBase"]
[SourceQuality "1"]
[TimeControl "5400+30"]

1. d4 {[%emt 0:00:38]} d5 {[%emt 0:00:56]} 2. c4 {[%emt 0:01:26]} dxc4 {[%emt 0:02:53]} 3. Nf3 {[%emt 0:03:39]} Nf6 {[%emt 0:03:52]} 4. e3 {[%emt 0:04:08]} e6 {[%emt 0:02:21]} 5. Bxc4 {[%emt 0:02:26]} c5 {[%emt 0:03:50]} 6. O-O {[%emt 0:03:32]} a6 {[%emt 0:02:57]} 7. Nc3 {[%emt 0:00:35]} b5 {[%emt 0:02:43]} 8. Bb3 {[%emt 0:01:30]} Bb7 {[%emt 0:05:25]} 9. Ne5 {[%emt 0:04:44]} cxd4 {[%emt 0:08:43]} 10. exd4 {[%emt 0:04:23]} Nc6 {[%emt 0:08:48]} 11. Nxc6 {[%emt 0:06:22]} Bxc6 {[%emt 0:00:55]} 12. Be3 {[%emt 0:03:50]} Bd6 {[%emt 0:07:18]} 13. f4 {[%emt 0:05:01]} h5 {[%emt 0:14:28]} 14. f5 {[%emt 0:06:30]} Bxh2+ {[%emt 0:06:22]} 15. Kh1 {[%emt 0:09:20]} Ng4 {[%emt 0:02:01]} 16. Bf2 {[%emt 0:02:35]} Nxf2+ {[%emt 0:01:32]} 17. Rxf2 {[%emt 0:01:55]} Qh4 {[%emt 0:00:27]} 18. Rc2 {[%emt 0:02:15]} Bg3+ {[%emt 0:01:54]} 19. Kg1 {[%emt 0:02:57]} Qh2+ {[%emt 0:00:20]} 20. Kf1 {[%emt 0:00:08]} Qh1+ {[%emt 0:01:25]} 21. Ke2 {[%emt 0:01:26]} Qxg2+ {[%emt 0:00:25]} 22. Kd3 {[%emt 0:00:29]} Qh3 {[%emt 0:01:01]} 23. Qf1 {[%emt 0:02:05]} Qg4 {[%emt 0:04:52]} 24. Re2 {[%emt 0:03:29]} O-O-O {[%emt 0:04:36]} 25. d5 {[%emt 0:05:11]} Qxf5+ {[%emt 0:03:04]} 26. Qxf5 {[%emt 0:01:58]} exf5 {[%emt 0:00:10]} 27. Rc1 {[%emt 0:00:28]} Kb8 {[%emt 0:00:50]} 28. Re7 {[%emt 0:00:26]} Be8 {[%emt 0:01:54]} 29. Rf1 {[%emt 0:04:23]} g6 {[%emt 0:00:58]} 30. Kd4 {[%emt 0:04:00]} h4 {[%emt 0:00:36]} 31. a4 {[%emt 0:00:27]} h3 {[%emt 0:00:59]} 32. Ne2 {[%emt 0:00:21]} Bd6 {[%emt 0:00:25]} 33. Re3 {[%emt 0:00:51]} h2 {[%emt 0:00:30]} 34. Rh1 {[%emt 0:00:53]} g5 {[%emt 0:00:48]} 35. Rf3 {[%emt 0:01:44]} f4 {[%emt 0:00:42]} 36. Rf2 {[%emt 0:02:06]} g4 {[%emt 0:00:58]} 37. Ke4 {[%emt 0:02:16]} f3 {[%emt 0:01:04]} 38. Nf4 {[%emt 0:01:34]} g3 {[%emt 0:00:35]} 39. Rxf3 {[%emt 0:00:08]} Bxf4 {[%emt 0:00:18]} 0-1

[Event "EYCC G10-ch 2024"]
[Site "Prague"]
[Date "2024.08.30"]
[Round "8.4"]
[White "Ahmadli, Mehriban"]
[Black "Stoica, Melina-Theodora"]
[Result "1-0"]
[ECO "B11"]
[WhiteElo "1646"]
[BlackElo "1576"]
[Annotator "NA RC"]
[PlyCount "103"]
[EventDate "2024.08.19"]
[EventType "swiss"]
[EventCountry "CZE"]
[SourceTitle "playchess.com"]
[Source "ChessBase"]
[SourceQuality "1"]
[TimeControl "5400+30"]

1. e4 {[%emt 0:00:02]} c6 {[%emt 0:00:06]} 2. Nc3 {[%emt 0:00:04]} d5 {[%emt 0:00:10]} 3. Nf3 {[%emt 0:00:05]} Bg4 {[%emt 0:00:20]} 4. h3 {[%emt 0:00:22]} Bxf3 {[%emt 0:11:45]} 5. Qxf3 {[%emt 0:00:41]} e6 {[%emt 0:04:25]} 6. d4 {[%emt 0:02:37]} dxe4 {[%emt 0:06:15]} 7. Qxe4 {[%emt 0:01:04]} Nf6 {[%emt 0:01:35]} 8. Qd3 {[%emt 0:04:00]} Nbd7 {[%emt 0:06:01]} 9. g4 {[%emt 0:01:36]} Bb4 {[%emt 0:11:05]} 10. Bd2 Qc7 {[%emt 0:04:10]} 11. O-O-O {[%emt 0:16:04]} O-O-O {[%emt 0:01:35]} 12. Qc4 {[%emt 0:10:22]} Ba5 {[%emt 0:08:17]} 13. b4 {[%emt 0:10:19]} Bb6 {[%emt 0:02:42]} 14. a4 {[%emt 0:10:44]} a6 {[%emt 0:00:51]} 15. a5 {[%emt 0:09:45]} Ba7 {[%emt 0:00:48]} 16. Ne2 {[%emt 0:02:10]} Ne4 {[%emt 0:07:34]} 17. Be3 {[%emt 0:02:34]} Ndf6 {[%emt 0:18:05]} 18. Bg2 {[%emt 0:05:20]} Nd6 {[%emt 0:00:34]} 19. Qb3 {[%emt 0:01:16]} Nd5 {[%emt 0:06:51]} 20. c4 {[%emt 0:02:28]} Nxe3 {[%emt 0:00:34]} 21. fxe3 {[%emt 0:00:02]} Kb8 {[%emt 0:04:37]} 22. c5 {[%emt 0:10:08]} Nb5 {[%emt 0:00:20]} 23. Rhf1 {[%emt 0:00:59]} Rhf8 {[%emt 0:01:09]} 24. g5 {[%emt 0:06:04]} Qe7 {[%emt 0:00:10]} 25. h4 {[%emt 0:00:23]} g6 {[%emt 0:00:29]} 26. Rf6 {[%emt 0:02:09]} Qc7 {[%emt 0:00:29]} 27. Rf4 {[%emt 0:00:59]} e5 {[%emt 0:00:46]} 28. Rf2 {[%emt 0:00:55]} exd4 {[%emt 0:00:13]} 29. exd4 {[%emt 0:00:28]} Qe7 {[%emt 0:00:26]} 30. Rd2 {[%emt 0:00:52]} Qc7 {[%emt 0:00:48]} 31. Qf3 {[%emt 0:00:25]} Qe7 {[%emt 0:00:26]} 32. Qb3 {[%emt 0:00:42]} Qc7 {[%emt 0:00:07]} 33. Bh1 {[%emt 0:00:18]} Ka8 {[%emt 0:00:39]} 34. Qc4 {[%emt 0:00:44]} Bb8 {[%emt 0:00:22]} 35. d5 cxd5 {[%emt 0:00:34]} 36. Rxd5 {[%emt 0:00:51]} Rxd5 {[%emt 0:00:17]} 37. Qxd5 {[%emt 0:00:24]} Ba7 {[%emt 0:01:05]} 38. Ng3 {[%emt 0:00:57]} Rd8 {[%emt 0:00:40]} 39. Qxf7 {[%emt 0:00:16]} Qxf7 {[%emt 0:00:38]} 40. Rxf7 {[%emt 0:00:01]} Rb8 {[%emt 0:01:13]} 41. Rxh7 {[%emt 0:00:20]} Nd4 {[%emt 0:00:13]} 42. Kd2 {[%emt 0:00:36]} Nc6 {[%emt 0:00:07]} 43. Bxc6 {[%emt 0:00:17]} bxc6 {[%emt 0:00:06]} 44. Rg7 {[%emt 0:00:09]} Rxb4 {[%emt 0:00:06]} 45. Rxg6 {[%emt 0:00:23]} Rxh4 {[%emt 0:00:05]} 46. Rg8+ {[%emt 0:00:37]} Bb8 {[%emt 0:00:06]} 47. g6 {[%emt 0:01:08]} Ra4 {[%emt 0:00:29]} 48. g7 {[%emt 0:00:46]} Rg4 {[%emt 0:00:30]} 49. Nf5 {[%emt 0:00:59]} Ka7 {[%emt 0:00:13]} 50. Re8 {[%emt 0:00:15]} Bf4+ {[%emt 0:00:41]} 51. Ke2 {[%emt 0:00:23]} Rxg7 {[%emt 0:00:27]} 52. Nxg7 1-0

[Event "EYCC G10-ch 2024"]
[Site "Prague"]
[Date "2024.08.30"]
[Round "8.5"]
[White "Constantin-Ciuntu, Anne-Sophie"]
[Black "Milojevic, Dunja"]
[Result "1-0"]
[ECO "B80"]
[WhiteElo "1641"]
[BlackElo "1568"]
[Annotator "NA RC"]
[PlyCount "139"]
[EventDate "2024.08.19"]
[EventType "swiss"]
[EventCountry "CZE"]
[SourceTitle "playchess.com"]
[Source "ChessBase"]
[SourceQuality "1"]
[TimeControl "5400+30"]

1. e4 {[%emt 0:00:09]} c5 {[%emt 0:00:09]} 2. Nf3 {[%emt 0:00:06]} e6 {[%emt 0:00:07]} 3. d4 {[%emt 0:00:05]} cxd4 {[%emt 0:00:09]} 4. Nxd4 {[%emt 0:00:08]} Nf6 {[%emt 0:00:21]} 5. Nc3 {[%emt 0:00:07]} d6 {[%emt 0:00:11]} 6. Be3 {[%emt 0:00:13]} a6 {[%emt 0:00:55]} 7. f4 {[%emt 0:00:12]} Qc7 {[%emt 0:02:33]} 8. Qf3 {[%emt 0:01:13]} Nbd7 {[%emt 0:02:55]} 9. g4 {[%emt 0:04:57]} e5 {[%emt 0:06:55]} 10. Nf5 {[%emt 0:02:26]} g6 {[%emt 0:00:14]} 11. Ng3 {[%emt 0:01:55]} exf4 {[%emt 0:12:53]} 12. Bxf4 {[%emt 0:01:05]} Bg7 {[%emt 0:01:56]} 13. h3 {[%emt 0:03:09]} O-O {[%emt 0:04:11]} 14. O-O-O {[%emt 0:09:31]} Ne5 {[%emt 0:01:12]} 15. Bxe5 {[%emt 0:00:59]} dxe5 {[%emt 0:00:15]} 16. g5 {[%emt 0:01:29]} Nd7 {[%emt 0:01:06]} 17. Nd5 {[%emt 0:05:22]} Qa5 {[%emt 0:01:44]} 18. Ne7+ {[%emt 0:03:32]} Kh8 {[%emt 0:00:30]} 19. Nxc8 {[%emt 0:00:32]} Raxc8 {[%emt 0:00:35]} 20. Rxd7 {[%emt 0:00:38]} Qxa2 {[%emt 0:01:13]} 21. Qa3 {[%emt 0:00:49]} Qe6 {[%emt 0:00:47]} 22. Rxb7 {[%emt 0:04:32]} Rxc2+ {[%emt 0:05:04]} 23. Kxc2 {[%emt 0:00:25]} Qc6+ {[%emt 0:00:16]} 24. Kb1 {[%emt 0:00:20]} Qxb7 {[%emt 0:00:06]} 25. Qxa6 {[%emt 0:04:20]} Qe7 {[%emt 0:00:34]} 26. h4 {[%emt 0:05:56]} Qb4 {[%emt 0:00:49]} 27. Bh3 {[%emt 0:04:13]} Rb8 {[%emt 0:01:05]} 28. Qe2 {[%emt 0:09:15]} Qb3 {[%emt 0:01:19]} 29. Rg1 {[%emt 0:15:01]} Bf8 {[%emt 0:04:06]} 30. Rg2 {[%emt 0:02:27]} Ba3 {[%emt 0:02:24]} 31. Qd2 {[%emt 0:07:29]} Kg7 {[%emt 0:12:25]} 32. h5 {[%emt 0:02:58]} Be7 {[%emt 0:07:37]} 33. Qd5 {[%emt 0:03:42]} Qc3 {[%emt 0:08:00]} 34. Rf2 Qe1+ {[%emt 0:10:59]} 35. Ka2 {[%emt 0:02:49]} Qxf2 {[%emt 0:01:31]} 36. Qxe5+ {[%emt 0:00:08]} Kg8 {[%emt 0:00:12]} 37. Qxb8+ {[%emt 0:00:23]} Bf8 {[%emt 0:00:09]} 38. h6 {[%emt 0:01:53]} Qe3 {[%emt 0:00:53]} 39. Qe5 {[%emt 0:01:41]} Qa7+ {[%emt 0:00:09]} 40. Kb3 {[%emt 0:00:35]} Qb6+ {[%emt 0:00:18]} 41. Kc2 {[%emt 0:00:29]} Qf2+ {[%emt 0:00:59]} 42. Kd3 {[%emt 0:00:23]} Qe1 {[%emt 0:02:06]} 43. Bf1 {[%emt 0:01:14]} Qb1+ {[%emt 0:00:42]} 44. Ke3 {[%emt 0:00:25]} Qc1+ {[%emt 0:01:07]} 45. Kf3 {[%emt 0:00:14]} Qd1+ {[%emt 0:00:42]} 46. Be2 {[%emt 0:00:15]} Qb3+ {[%emt 0:01:12]} 47. Qc3 {[%emt 0:00:18]} Qb8 {[%emt 0:01:56]} 48. Bc4 {[%emt 0:01:31]} Qd8 {[%emt 0:00:53]} 49. Qf6 {[%emt 0:01:07]} Qxf6+ {[%emt 0:01:41]} 50. gxf6 {[%emt 0:00:10]} Bxh6 {[%emt 0:00:23]} 51. b4 {[%emt 0:00:12]} Bf8 {[%emt 0:00:38]} 52. b5 {[%emt 0:00:10]} Bd6 {[%emt 0:00:11]} 53. b6 {[%emt 0:00:16]} h5 {[%emt 0:00:31]} 54. Ne2 {[%emt 0:00:30]} Be5 {[%emt 0:00:51]} 55. b7 {[%emt 0:00:20]} g5 {[%emt 0:00:34]} 56. Nd4 {[%emt 0:01:01]} g4+ {[%emt 0:00:15]} 57. Kg2 {[%emt 0:00:09]} h4 {[%emt 0:00:32]} 58. Nc6 {[%emt 0:00:43]} h3+ {[%emt 0:00:13]} 59. Kg1 {[%emt 0:00:16]} Bc7 {[%emt 0:00:10]} 60. e5 {[%emt 0:01:18]} g3 {[%emt 0:00:38]} 61. Bf1 {[%emt 0:00:23]} Bb6+ {[%emt 0:01:00]} 62. Kh1 {[%emt 0:00:10]} g2+ {[%emt 0:00:08]} 63. Bxg2 {[%emt 0:00:05]} hxg2+ {[%emt 0:00:04]} 64. Kxg2 {[%emt 0:00:09]} Bc7 {[%emt 0:00:11]} 65. Kf3 {[%emt 0:00:14]} Kh7 {[%emt 0:00:11]} 66. Ke4 {[%emt 0:00:15]} Kg6 {[%emt 0:00:18]} 67. b8=Q {[%emt 0:00:05]} Bxb8 {[%emt 0:00:05]} 68. Nxb8 {[%emt 0:00:06]} Kh7 {[%emt 0:00:14]} 69. Nc6 {[%emt 0:00:12]} Kg8 {[%emt 0:00:12]} 70. Nd8 {[%emt 0:00:03]} 1-0

[Event "EYCC G10-ch 2024"]
[Site "Prague"]
[Date "2024.08.30"]
[Round "8.6"]
[White "Paunescu, Aida"]
[Black "Slusarczyk, Agnieszka"]
[Result "1/2-1/2"]
[ECO "C30"]
[WhiteElo "1603"]
[BlackElo "1614"]
[Annotator "NA RC"]
[PlyCount "64"]
[EventDate "2024.08.19"]
[EventType "swiss"]
[EventCountry "CZE"]
[SourceTitle "playchess.com"]
[Source "ChessBase"]
[SourceQuality "1"]
[TimeControl "5400+30"]

1. e4 {[%emt 0:00:04]} e5 {[%emt 0:00:22]} 2. f4 {[%emt 0:00:19]} Nc6 {[%emt 0:00:19]} 3. Nf3 {[%emt 0:01:11]} f5 {[%emt 0:00:29]} 4. d3 {[%emt 0:07:42]} d6 {[%emt 0:00:49]} 5. Nc3 {[%emt 0:01:59]} Nf6 {[%emt 0:01:18]} 6. Be2 {[%emt 0:04:32]} Be7 {[%emt 0:00:23]} 7. O-O {[%emt 0:01:27]} O-O {[%emt 0:00:07]} 8. Be3 {[%emt 0:06:17]} exf4 {[%emt 0:01:22]} 9. Bxf4 {[%emt 0:00:49]} Kh8 {[%emt 0:01:28]} 10. Bg3 {[%emt 0:04:52]} Ng4 {[%emt 0:11:14]} 11. Qd2 {[%emt 0:04:57]} fxe4 {[%emt 0:09:24]} 12. dxe4 {[%emt 0:08:03]} Bf6 {[%emt 0:03:23]} 13. h3 {[%emt 0:04:18]} Nge5 {[%emt 0:01:00]} 14. Nxe5 {[%emt 0:00:59]} Nxe5 {[%emt 0:07:42]} 15. Nd5 {[%emt 0:04:26]} Be6 {[%emt 0:13:03]} 16. Rad1 {[%emt 0:06:23]} Bxd5 {[%emt 0:06:46]} 17. exd5 {[%emt 0:08:06]} Ng6 {[%emt 0:03:29]} 18. b3 {[%emt 0:01:38]} Qe7 {[%emt 0:01:48]} 19. Rde1 {[%emt 0:01:45]} Bg5 {[%emt 0:03:20]} 20. Qd3 {[%emt 0:04:38]} Nf4 {[%emt 0:03:27]} 21. Bxf4 {[%emt 0:01:11]} Bxf4 {[%emt 0:01:12]} 22. Bg4 {[%emt 0:01:18]} Qh4 {[%emt 0:00:47]} 23. Re4 {[%emt 0:06:37]} Be5 {[%emt 0:02:07]} 24. Rf3 {[%emt 0:01:37]} Qg5 {[%emt 0:01:35]} 25. Qe3 {[%emt 0:01:48]} Qxe3+ {[%emt 0:05:12]} 26. Rfxe3 {[%emt 0:00:03]} Rae8 {[%emt 0:00:26]} 27. Be6 {[%emt 0:00:59]} c6 {[%emt 0:00:22]} 28. c4 {[%emt 0:00:16]} Rf6 {[%emt 0:01:50]} 29. Rf3 {[%emt 0:01:14]} Rxf3 {[%emt 0:01:32]} 30. gxf3 {[%emt 0:00:03]} c5 {[%emt 0:02:05]} 31. Kf1 {[%emt 0:00:40]} Rf8 {[%emt 0:00:36]} 32. Ke2 {[%emt 0:00:13]} g6 {[%emt 0:00:21]} 1/2-1/2